Cogmind - Beta 16.1 @@@ ROGUE MODE // 2026.03.31 @ 19:10:09 Player: DenchikZalaziet Result: Self-destructed Performance ------------- Evolutions (2) 1000 Regions Visited (3) 600 Robots Destroyed (18) 90 Value Destroyed (451) 451 Prototype IDs (2) 40 Alien Tech Used (0) 0 Bonus (0) 0 TOTAL SCORE: 2181 Bonus ------- None Cogmind --------- Core Integrity 527/550 Matter 227/300 Energy 250/250 System Corruption 0% Temperature Cool (0) Movement Treading (480) Ox4 Location -8/Materials Parts ------- > --- POWER (1) -------- Ion Engine > --- PROPULSION (3) --- Light Treads > --- UTILITY (5) ------ Huge Storage Unit Signal Interpreter Seismic Detector Light Armor Plating Hacking Suite > --- WEAPON (2) ------- Autogun Improved Light Cannon > --- INVENTORY (25) --- Ion Engine Light Ion Engine Light Ion Engine Large Storage Unit Seismic Detector Propulsion Shielding Light Armor Plating Improved Light Armor Plating Autogun Autogun Improved Light Cannon Datajack Welding Torch Peak State ------------ > --- POWER ------------ Ion Engine > --- PROPULSION ------- Light Treads Light Treads > --- UTILITY ---------- Huge Storage Unit Signal Interpreter Seismic Detector Light Armor Plating Hacking Suite > --- WEAPON ----------- Autogun Improved Light Cannon > --- INVENTORY -------- Ion Engine Light Ion Engine Light Ion Engine Large Storage Unit Seismic Detector Propulsion Shielding Light Armor Plating Autogun Autogun Improved Light Cannon Datajack Welding Torch [Rating: 15] Favorites ----------- Power Ion Engine Engine Ion Engine Propulsion Light Treads Treads Light Treads Wheel Wheel Utility Seismic Detector Device Seismic Detector Storage Large Storage Unit Processor Signal Interpreter Hackware Hacking Suite Protection Light Armor Plating Weapon Light Assault Rifle Energy Gun Small Laser Ballistic Gun Light Assault Rifle Ballistic Cannon Improved Light Cannon Special Weapon Welding Torch Build | -11 -10 -10 -8 ------- Run | Yrd Mat Sub Mat Slots Evolved 4 | . . . 4 Power . | . . . . Propulsion 1 | . . . 1 Utility 3 | . . . 3 Weapon . | . . . . Parts Attached 26 | 9 13 . 4 Power 5 | 1 3 . 1 Engine 5 | 1 3 . 1 Core . | . . . . Reactor . | . . . . Propulsion 4 | 3 1 . . Treads 3 | 2 1 . . Leg . | . . . . Wheel 1 | 1 . . . Hover . | . . . . Flight . | . . . . Utility 7 | 2 2 . 3 Device 1 | 1 . . . Storage 3 | 1 2 . . Processor 1 | . . . 1 Hackware 1 | . . . 1 Protection 1 | . . . 1 Artifact . | . . . . Weapon 10 | 3 7 . . Energy Gun 1 | 1 . . . Energy Cannon . | . . . . Ballistic Gun 7 | 2 5 . . Ballistic Cannon 1 | . 1 . . Launcher . | . . . . Special Weapon 1 | . 1 . . Impact Weapon . | . . . . Slashing Weapon . | . . . . Piercing Weapon . | . . . . Special Melee Weapon . | . . . . Unidentified Prototypes . | . . . . Parts Lost 2 | . 1 . 1 Power . | . . . . Propulsion 2 | . 1 . 1 Utility . | . . . . Weapon . | . . . . Highest Loss Streak 1 | . 1 . 1 To Critical Strikes . | . . . . Average Backups 11 | 3 11 14 13 Power 2 | . 2 3 3 Propulsion 2 | 2 2 . . Utility 3 | . 3 6 5 Weapon 2 | . 2 2 3 Tool/Special . | . . . . Unused Backups 11 | . 4 . 7 Power 1 | . 1 . . Propulsion 2 | . 2 . . Utility 4 | . . . 4 Weapon 3 | . 1 . 2 Tool/Special 1 | . . . 1 Average Slot Usage (%) 97 | . 98 89 85 Engine 12 | . 12 4 9 Treads 26 | . 26 28 17 Device 13 | . 14 14 9 Storage 13 | . 14 14 9 Ballistic Gun 24 | . 26 14 9 Ballistic Cannon 2 | . 1 14 9 Peak Build Rating 15 | 7 11 11 15 Average Rating 8 | 5 8 9 14 On Entrance 7 | . 7 11 10 Avg Prop Armor Cover (%) 11 | 7 13 . . Naked Turns . | . . . . Heaviest Build 96 | 13 93 93 96 Greatest Support 40 | 40 40 40 40 Greatest Overweight (x) 7 | . 7 2 2 Average Overweight (x) . | . . 1 2 Largest Inventory Capacity 25 | 8 25 25 25 Average Capacity 16 | 7 15 24 25 Most Carried 16 | 5 15 16 15 Average Carried 11 | 3 11 14 12 Final Capacity 25 | 8 25 25 25 Final Carried 16 | 5 15 16 13 Class Distribution -------------------- 100% | Mutant Dominant Class ---------------- Mutant | -10/Materials Mutant | -10/Subcaves Mutant | -8/Materials Resources | -11 -10 -10 -8 ----------- Run | Yrd Mat Sub Mat Matter Collected 716 | 284 412 20 . Remotely . | . . . . Salvage Created 718 | 17 661 . 40 Parts 41 | 3 35 . 3 Haulers Intercepted 2 | . 2 . . Recyclers Shooed . | . . . . Parts Field Recycled . | . . . . Retrieved Matter . | . . . . Parts Self-Destructed 3 | . . 3 . Prevented . | . . . . Parts Restored . | . . . . Kills | -11 -10 -10 -8 ------- Run | Yrd Mat Sub Mat Combat Hostiles Destroyed 9 | . 8 . 1 Guns 8 | . 7 . 1 Cannons 1 | . 1 . . Classes Destroyed 8 | 1 6 . 1 Worker 1 | . 1 . . Tunneler 1 | 1 . . . Hauler 2 | . 2 . . Recycler 2 | . 2 . . Operator 1 | . 1 . . Watcher 2 | . 2 . . Grunt 8 | . 8 . . Hunter 1 | . . . 1 Best Kill Streak 2 | 1 2 . 1 Combat Bots Only 2 | . 2 . 1 Max Kills in Single Turn 1 | 1 1 . 1 Gunslinging . | . . . . Exploded . | . . . . Melee . | . . . . Uniques/NPCs Destroyed . | . . . . Combat | -11 -10 -10 -8 -------- Run | Yrd Mat Sub Mat Hostile Shots Fired 72 | . 60 . 12 Missed 19 | . 17 . 2 Hits 53 | . 43 . 10 Projectile 53 | . 43 . 10 Critical Strikes 1 | . 1 . . Damage Taken 734 | . 580 . 154 Core 169 | . 146 . 23 Absorbed by Shields . | . . . . Regen/Repaired (Parts) 86 | . 86 . . Core Remaining (%) 70 | 100 . 41 . Volleys Fired 95 | 7 83 1 4 Largest 2 | 2 2 2 2 Hottest 56 | 40 56 56 56 Shots Fired 185 | 14 161 2 8 Gun 172 | 14 153 1 4 Cannon 7 | . 2 1 4 Launcher . | . . . . Special 6 | . 6 . . Kinetic 179 | 14 155 2 8 Thermal 6 | . 6 . . Explosive . | . . . . Electromagnetic . | . . . . Robot Hit Streak 12 | 4 12 11 5 Robot Miss Streak 6 | 1 6 1 3 Penetration Max . | . . . . Secondary Targets . | . . . . Shots Hit Robots 113 | 10 97 1 5 Core Hits 46 | 3 40 . 3 Critical Kills . | . . . . Critical Parts Destroyed . | . . . . Critical Strikes . | . . . . Melee Attacks . | . . . . Impact . | . . . . Slashing . | . . . . Piercing . | . . . . Sneak Attacks . | . . . . Combat Hostiles . | . . . . Follow-up Attacks . | . . . . Damage Inflicted 1102 | 111 919 12 60 Guns 981 | 99 838 12 32 Cannons 73 | . 45 . 28 Explosions . | . . . . Melee . | . . . . Ramming 48 | 12 36 . . Kinetic 1054 | 99 883 12 60 Thermal . | . . . . Explosive . | . . . . Electromagnetic . | . . . . Impact . | . . . . Slashing . | . . . . Piercing . | . . . . Highest Corruption 1 | . 1 1 . Average Corruption 1 | . 1 1 . Corruption Purged . | . . . . Corruption Blocked . | . . . . Effects 20 | . 19 1 . Message Errors 6 | . 6 . . Matter Fused 4 | . 4 . . Energy Discharges 2 | . 2 . . Data Loss (minor) 4 | . 3 1 . Data Loss (major) 2 | . 2 . . Misfires 2 | . 2 . . Overload Shots . | . . . . Overflow Damage . | . . . . Projectiles . | . . . . Explosions . | . . . . Melee . | . . . . Knockbacks 1 | . . . 1 Impact . | . . . . Kinetic 1 | . . . 1 Secondary . | . . . . Self-Inflicted Damage . | . . . . Shots . | . . . . Rammed 9 | 3 6 . . Targets Rammed 10 | 3 7 . . Kicked . | . . . . Crushed 1 | . 1 . . Highest Temperature 27 | . 27 . 20 Average Temperature 10 | . 10 . 10 Received Heat Transfer 351 | . 351 . . Siege Activations . | . . . . Martial Activations . | . . . . Shielding Activations . | . . . . Robots Disrupted . | . . . . Combat Hostiles . | . . . . Robots Corrupted . | . . . . Combat Hostiles . | . . . . Parts Fried . | . . . . Impact Corruptions . | . . . . Robots Melted . | . . . . Combat Hostiles . | . . . . Parts Melted . | . . . . Heat Transferred . | . . . . Parts Sabotaged . | . . . . Parts Stolen . | . . . . Parts Stripped . | . . . . Power Chain Reactions . | . . . . Alert | -11 -10 -10 -8 ------- Run | Yrd Mat Sub Mat Maximum Alert Level . | . . . . Low Security (%) 100 | 100 100 . 100 Level 1 . | . . . . Level 2 . | . . . . Level 3 . | . . . . Level 4 . | . . . . Level 5 . | . . . . High Security . | . . . . Max Security . | . . . . Peak Influence 86 | 5 86 . 31 Initial . | . . . . Average 19 | . 22 . . Influence Increases 360 | 5 324 . 31 Destroy 0b10 Robot/C 180 | . 160 . 20 Destroy 0b10 Robot/NC 45 | 5 40 . . Destroy Leader 68 | . 58 . 10 Successful Hack 21 | . 21 . . Destroy Structure 1 | . . . 1 Lose Combat Pursuer 45 | . 45 . . Influence Decreases 329 | 5 292 32 . Entered New Map 16 | . . 16 . Time Decay 313 | 5 292 16 . Squads Dispatched 1 | . 1 . . Investigation . | . . . . Extermination . | . . . . Reinforcement 1 | . 1 . . Assault . | . . . . Garrison . | . . . . Intercept . | . . . . Searches Triggered . | . . . . Construction Impeded . | . . . . Haulers Reinforced . | . . . . Active Scanning Responses . | . . . . Cargo Convoy Interrupts . | . . . . Stealth | -11 -10 -10 -8 --------- Run | Yrd Mat Sub Mat Distress Signals 1 | . 1 . . Communications Jammed . | . . . . Distress Signals . | . . . . Times Spotted 23 | . 21 . 2 Peak Tracking Total 3 | . 3 . 1 Tactical Retreats 3 | . 3 . . Traps | -11 -10 -10 -8 ------- Run | Yrd Mat Sub Mat Traps Triggered 2 | . 2 . . Indirectly . | . . . . Trap Hack Attempts . | . . . . Triggered . | . . . . Disarmed . | . . . . Reprogrammed . | . . . . Reused . | . . . . Traps Extracted . | . . . . Installed . | . . . . Triggered . | . . . . Machines | -11 -10 -10 -8 ---------- Run | Yrd Mat Sub Mat Machines Disabled . | . . . . Max in Single Turn . | . . . . Machines Repaired . | . . . . Machines Dismantled . | . . . . Machines Sabotaged . | . . . . Overloaded Fab Kills . | . . . . Hacking | -11 -10 -10 -8 --------- Run | Yrd Mat Sub Mat Machines Accessed 10 | . 10 . . Terminals 8 | . 8 . . Fabricators . | . . . . Repair Stations 1 | . 1 . . Recycling Units 1 | . 1 . . Scanalyzers . | . . . . Garrison Access . | . . . . Total Hacks 35 | . 35 . . Successful 12 | . 12 . . Failed 23 | . 23 . . Catastrophic 3 | . 3 . . Database Lockouts . | . . . . Manual 21 | . 21 . . Terminals 30 | . 30 . . Fabricators . | . . . . Repair Stations 4 | . 4 . . Recycling Units 1 | . 1 . . Scanalyzers . | . . . . Garrison Access . | . . . . Terminal Hacks 8 | . 8 . . Record 1 | . 1 . . Robot Analysis 2 | . 2 . . Prototype ID Bank 2 | . 2 . . Level Access Points 1 | . 1 . . Alert Level 1 | . 1 . . Hauler Manifests 1 | . 1 . . Fabricator Hacks . | . . . . Repair Station Hacks 2 | . 2 . . Scan Component 1 | . 1 . . Repair 1 | . 1 . . Recycling Unit Hacks 1 | . 1 . . Report Inventory 1 | . 1 . . Scanalyzer . | . . . . Garrison Access Hacks . | . . . . Unauthorized Hacks 1 | . 1 . . Terminals 1 | . 1 . . Track 1 | . 1 . . Fabricators . | . . . . Repair Stations . | . . . . Recycling Units . | . . . . Scanalyzers . | . . . . Garrison Access . | . . . . Data Cores Recovered . | . . . . Used . | . . . . Hacking Detections 9 | . 9 . . Full Trace Events 1 | . 1 . . Feedback Events . | . . . . Feedback Blocked . | . . . . Robot Schematics Acquired . | . . . . Robots Built . | . . . . Authchips . | . . . . Time . | . . . . Total Robot Build Rating . | . . . . Part Schematics Acquired . | . . . . Parts Built . | . . . . Authchips . | . . . . Time . | . . . . Total Part Build Rating . | . . . . Part Studies Acquired . | . . . . Parts Repaired 1 | . 1 . . Time 26 | . 26 . . Parts Recycled . | . . . . Recycled Matter . | . . . . Retrieved Matter . | . . . . Retrieved Components . | . . . . Parts Scanalyzed . | . . . . Part Schematics Acquired . | . . . . Parts Damaged . | . . . . Bothacking | -11 -10 -10 -8 ------------ Run | Yrd Mat Sub Mat Used RIF Installer . | . . . . Robots Hacked . | . . . . Non-combat . | . . . . Combat . | . . . . Robot Hacks Applied . | . . . . Relay Couplers Released . | . . . . Fabnet Peak Effective % . | . . . . Robots Rewired . | . . . . Allies Hacked . | . . . . Hacks Repelled . | . . . . Allies | -11 -10 -10 -8 -------- Run | Yrd Mat Sub Mat Total Allies . | . . . . Largest Group . | . . . . Highest-Rated Group . | . . . . Highest-Rated Ally . | . . . . Total Orders . | . . . . Ally Attacks . | . . . . Total Damage . | . . . . Kills . | . . . . Allies Corrupted . | . . . . Allies Melted . | . . . . Intel | -11 -10 -10 -8 ------- Run | Yrd Mat Sub Mat Active Infowar (turns) 2700 | 43 2324 218 115 Seismic 2700 | 43 2324 218 115 Robot Analysis Total 2 | . 2 . . Derelict Logs Recovered . | . . . . Drone Launches . | . . . . Drone Recoveries . | . . . . Exploration | -11 -10 -10 -8 ------------- Run | Yrd Mat Sub Mat Turns Passed 2912 | 255 2324 218 115 Spaces Moved 1313 | 139 1081 65 28 Core 5 | 4 1 . . Treads 1253 | 130 1030 65 28 Legs . | . . . . Wheels 55 | 5 50 . . Hover . | . . . . Flight . | . . . . Fastest Speed 50 | 50 110 160 320 Average Speed 182 | 153 175 315 320 Slowest Speed 400 | 160 400 320 320 Overloaded Moves . | . . . . Propulsion Burnouts . | . . . . Robots Hopped . | . . . . Potential Cave-ins . | . . . . Cave-ins Triggered . | . . . . Exploration Rate (%) 29 | 6 99 7 7 Regions Visited 3 Branch Regions 1 Pre-discovered Areas . | . . . . Known Exits Taken . | . . . . Unknown Exits Taken 3 | 1 1 1 . Scrap Searched . | . . . . Spaces Dug . | . . . . Terrain Destroyed 1 | . . . 1 Melee . | . . . . Projectile 1 | . . . 1 AOE . | . . . . Terrain Rammed . | . . . . Walls Destroyed . | . . . . Machines Disabled . | . . . . Actions | -11 -10 -10 -8 --------- Run | Yrd Mat Sub Mat Total 1666 | 163 1378 79 46 Wait 173 | 1 163 . 9 Move 1310 | 138 1080 64 28 Hop . | . . . . Pick Up 31 | 5 14 11 1 Fast Attach 11 | 7 3 1 . Attach 6 | . 2 . 4 Detach . | . . . . Swap 16 | 2 14 . . Drop 14 | . 12 2 . Fire 95 | 7 83 1 4 Melee . | . . . . Ram . | . . . . Kick . | . . . . Crush 10 | 3 7 . . Escape Stasis . | . . . . Rewire . | . . . . Trap . | . . . . Miscellaneous . | . . . . Route ------- -11/Scrapyard -10/Materials (discovered 6 exits: *Mat x3 / [*Min x2] / [*Sub]) -10/Subcaves -8/Materials History --------- Turn | Location | Event 2 | -11/Scrapyard | Met Revision 17 18 | -11/Scrapyard | Discovered new exit (range 16) 256 | -11/Scrapyard | Entered Materials 281 | -10/Materials | Discovered new exit (range 6) 314 | -10/Materials | Build established: Mutant 548 | -10/Materials | Discovered new exit (range 15) 1244 | -10/Materials | Repaired Lgt. Treads 1251 | -10/Materials | Discovered new exit (range 12) 1598 | -10/Materials | Discovered new exit (range 15) 1828 | -10/Materials | Identified exit to Materials 2332 | -10/Materials | Core integrity fell below 50% 2580 | -10/Materials | Entered Subcaves 2757 | -10/Subcaves | Discovered new exit (range 14) 2798 | -10/Subcaves | Entered Materials 2798 | -8/Materials | Evolved 4 slots: Propulsion x1, Utility x3 2913 | -8/Materials | Self-destructed Last Messages --------------- 02697_ Acquired Lgt. Armor Plating. 02700_ Y2-CAJ(u) builds Twisted Machinery. 02701_ Acquired Signal Interpreter. 02702_ Y2-CAJ(u) builds Twisted Machinery. 02757_ EXIT=FOUND 02776_ Acquired 12 matter. 02782_ Acquired 8 matter. PARAMETERS=PROPULSION+1,UTILITY+3 LOCATION=UNKNOWN GOAL=ESCAPE 02818_ Acquired Imp. Light Armor Plating. 02881_ Penetrated by Slug. 02898_ Slug penetrates Wall. 02904_ Penetrated by Slug. 02904_ Lgt. Treads destroyed. 02904_ U-05 Engineer destroyed. 02908_ H-55 Commando knocked back. 02910_ Penetrated by Slug. 02910_ H-55 Commando destroyed. [Achievement: Just Browsing] Map ----- +----------------------------------------------------+ | | | | | | | | | | | | | | | | | | | | | | | | | | | | | | | | | | | ?????????????????????????????????????????????????? | | ?????????????????????????????????????????????????? | | ?????????????????????????????????????????????????? | | ?????????????????????????????????????????????????? | | ????????????#####################????????????????? | | ????????????# #????????????????? | | ????????????# % ?????????????????? | | ????????????# = |##+##???????????????? | | ?????????? [%* @ *%;!! #?????????????? | | ?????????????????######## ####=""" #?????????????? | | ????????????????????????# #??????????????????????? | | ???????????????????######+####???????????????????? | | ???????????????????# #???????????????????? | | ???????????????????# """" #???????????????????? | | ???????????????##### """" #???????????????????? | | ???####+######## # """" #???????????????????? | | ???# # # #???????????????????? | | ???# """ # # #???????????????????? | | ???? """"" + + #???????????????????? | | ??????""""" # # #???????????????????? | | ???????"""" # ###########???????????????????? | | ???????""" [ # ????????????????????????????? | | ?????? # ??????????????????????????? | | ?????########### ?????????????????????????? | | ???????????????# """ ???????????????????????? | | ???????????????+ """ ???????????????????????? | | ???????????????# """????????????????????????? | | ???????????????# """????????????????????????? | | ???????????????# ""?????????????????????????? | | ???????????????# ?????????????????????????? | | ???????????????# ?????????????????????????? | | ???????????????# #####?????????????????????????? | | ???????????????# #?????????????????????????????? | +----------------------------------------------------+ Best States ------------- Heat Dissipation 31 Energy Generation 10 Energy Capacity 250 Matter Stores 300 Matter Capacity 300 Sight Range 16 Terrain Scan Density 10 Armor Coverage 150 Evasion (%) 44 Recoil Reduction 2 Offensive Hacking 10 Item Schematics ----------------- None Robot Schematics ------------------ None Fabricated ------------ Nothing Repaired ---------- Lgt. Treads | 38% | -10/Materials Studied --------- None Alien Tech Used ----------------- None Achievements -------------- Just Browsing Challenges ------------ None Game ------ Seed WeaponsEnhancedWheel Manual? 0 Play Time 00:28:37 Cumulative 25.1 hours Start 2026.03.31 @ 18:39:21 End 2026.03.31 @ 19:10:09 Sessions 1 Manual Loads 0 Difficulty Rogue Special Mode None Game No. 38 Rogue 37 Adventurer 1 Explorer 0 Win Type - Total 0 Types 0/0/0/0/0/0/0/0/0/0 Lore% 16 Gallery% 25 Achievement% 19 Wizard Run 0 Options --------- Layout 1 ASCII 0 Keyboard 1 Movement Arrows Keybinds 0 Fullscreen 1 Font 24/Smallcaps Map View 50x35 Zoom Use 0% Tactical HUD 1 Map Filters NONE Filters NONE Steam 1 RUN: ed0b9b45-97cc-428d-9c9c-a7d5dc5cea78